{"text_format":"1","workbook":"xlsx","n_sheets":6,"sheets":["Versionierung","Anleitung","Formular","Berechnung","Plankopf","Wertetabellen"],"not_rendered":{"charts":0,"images":12,"macros":1,"external_links":0,"defined_names":0,"comments":1,"pivot_tables":0},"unopened":[],"bounds":{"document_bytes":16777216,"sheet_cells":100000,"rows_first":2000,"rows_last":500,"rows_between":2000,"halvings":0,"cell_chars":16384,"cell_head_chars":4096},"cells_cut":0,"cells_raw":0,"read":"whole","date_system":"1900"}

{"sheet":"Versionierung","index":0,"n_rows":5,"n_cols":5,"rows_kept":5,"cut":false,"hidden":false,"merged":[]}
["Version","Datum","Inhalt/Änderung","Stelle ","Name"]
["1.0","2024-03-19","* Grundversion\n- Formulareingabe\n- Plankopfprüfung\n- Umbenennung Datei","SIB D3 (ZBM)","Kai Hüttner"]
["1.1","2024-03-19","* Fehlerbehebung\n- Blattschutz\n- Planprüfung\n- Hilfetexte (Tooltipps)","SIB D3 (ZBM)","Kai Hüttner"]
["1.2","2024-03-20","* Fehlerbehebung\n- Koordinatensystem","SIB D3 (ZBM)","Kai Hüttner"]
["1.3","2024-06-26","* Fehlerbehebung\n- Plankopfname wurde fehlerhaft generiert","SIB D3 (ZBM)","Kai Hüttner"]

{"sheet":"Anleitung","index":1,"n_rows":207,"n_cols":20,"rows_kept":207,"cut":false,"hidden":false,"merged":[[0,0,0,18],[177,0,177,18],[5,0,5,18],[15,19,15,30],[74,0,74,18],[139,0,139,18],[75,0,75,18],[55,0,55,18],[15,0,15,18]]}
["Allgemeine Hinweise"]
["* löschen der Zelleninhalte nur mit "]
[]
[]
[]
["Erläuterung Farbcodierung"]
[]
[null,"Pflichtfeld über Auswahliste"]
[null,"Pflichtfeld noch auszufüllen"]
[null,"Optionales Feld noch auszufüllen"]
[null,"Pflichtfeld/Optionales Feld ausgefüllt"]
[null,"Feld wird automatisch gefüllt"]
[]
[]
[]
["Erläuterung Formular",null,null,null,null,null,null,null,null,null,null,null,null,null,null,null,null,null,null,"Erläuterung Maßstabsverzerrung"]
[]
[]
[]
[]
[]
[]
[]
[]
[]
[]
[]
[]
[]
[]
[]
[]
[]
[]
[]
[]
[]
[]
[]
[]
[]
[]
[]
[]
[]
[]
[]
[]
[]
[]
[]
[]
[]
[]
[]
["Erläuterung Schaltflächen"]
[]
[]
[]
[]
[]
[]
[]
[]
[]
[]
[]
[]
[]
[]
[]
[]
[]
[]
["Anwendungshinweise"]
["Parameterexport"]
["* Ausfüllen des Plankopfformular"]
["- Pflichtfelder sind zu besetzen"]
["- alle Auswahlfelder (Dropdownlisten) sind entsprechend des Planes anzupassen"]
["- wahlweise Prüfung des Plankopfinhaltes"]
[]
["* Export des Inhaltes in eine AutoCAD-konforme Einlesedatei"]
[]
["* Import der Einlesedatei in AutoCAD"]
["- Eingabe \"ATTIN\" in der Befehlszeile"]
["- alternativ über Auswahl in den Expresstools"]
[]
[]
[]
[]
[]
[]
[]
[]
[]
[]
[]
[]
[]
[]
[]
[]
[]
[]
[]
[]
[]
[]
[]
[]
[]
[]
[]
[]
[]
[]
[]
[]
[]
[]
[]
[]
[]
[]
[]
[]
[]
[]
[]
[]
[]
[]
[]
[]
[]
[]
[]
["* wahlweise kann der Inhalte innerhalb der AutoCAD-Umgebung angepasst werden (Block-Attribute)"]
[]
["Prüfung Plankopf"]
[]
[]
[]
[]
[]
[]
[]
[]
[]
[]
[]
[]
[]
[]
[]
[]
[]
[]
[]
[]
[]
[]
[]
[]
[]
[]
[]
[]
[]
[]
[]
[]
[]
[]
[]
["* nach Bereinigung der Fehler ist/kann die Prüfung erneut durchgeführt werden"]
[]
["Umbenennung Datei"]
[]
[]
[]
[]
[]
[]
[]
[]
[]
[]
[]
[]
["* Benennung der CAD-Datei mit gebildetem Dateinamen"]
[]
[]
[]
[]
[]
[]
[]
[]
[]
[]
[]
[]
[]
[]
[]
["* Beachtung Dateiendung "]

{"sheet":"Formular","index":2,"n_rows":47,"n_cols":18,"rows_kept":47,"cut":false,"hidden":false,"merged":[[40,0,40,4],[31,0,31,4],[31,5,31,8],[32,1,32,4],[38,5,38,9],[38,1,38,4],[33,6,33,10],[34,6,34,10],[32,5,32,9],[30,6,30,10],[36,6,36,10],[34,0,34,4],[35,0,35,4],[20,0,20,6],[29,0,29,4],[30,0,30,4],[26,8,26,9],[22,8,22,9],[28,6,28,10],[22,0,22,6],[25,8,25,9],[21,8,21,10],[41,0,41,4],[19,0,19,6],[25,0,25,6],[27,0,27,4],[33,0,33,4],[39,0,39,4],[36,0,36,4],[37,0,37,4],[27,6,27,10],[23,8,23,9],[28,0,28,4],[26,0,26,6],[29,6,29,10],[24,8,24,9],[20,8,20,9],[21,0,21,6],[4,16,4,17],[16,8,16,10],[11,8,11,10],[8,0,8,1],[14,1,14,3],[10,0,10,6],[10,8,10,10],[7,0,7,4],[15,0,15,5],[15,8,15,10],[13,1,13,6],[14,5,14,6],[46,0,46,3],[45,6,45,8],[46,6,46,8],[42,1,42,3],[45,0,45,3],[44,1,44,3],[19,8,19,9],[17,8,17,9],[18,8,18,9],[14,8,14,10],[16,0,16,5],[17,0,17,6],[18,0,18,6],[2,9,2,10],[1,9,1,10],[0,9,0,10],[11,0,11,6],[12,0,12,6],[2,1,2,5],[1,1,1,5],[0,1,0,5],[2,6,2,8],[1,6,1,8],[0,6,0,8],[5,0,5,5],[6,0,6,5],[3,1,3,5],[3,6,3,8],[3,9,3,10]]}
[{"$f":"IF(B1>0,\"03\",\"\")","v":""},null,null,null,null,null,null,null,null,""]
[{"$f":"IF(B2>0,\"02\",\"\")","v":""},null,null,null,null,null,null,null,null,""]
[{"$f":"IF(B3>0,\"01\",\"\")","v":""},null,null,null,null,null,null,null,null,""]
["INDEX","ÄNDERUNG/ERGÄNZUNG",null,null,null,null,"DATUM",null,null,"NAME"]
[null,null,null,null,null,null,null,null,null,null,null,null,null,null,"Parameter","Eingabe","Erläuterung"]
["Die Daten liegen im Koordinatenreferenzsystem ETRS89-UTM33 vor."]
["Maßstabsfaktor beträgt am Objekt 0,99994 d.h. 100m im Plan = 100,006m in der Natur.",null,null,null,null,null,null,null,null,null,null,null,null,null,"mittlerer Rechtswert in [m]",323000,null,"Eingabe der letzten 6 Vorkommazahlen des Rechtswertes"]
["KOORDINATENREFERENZ/HÖHENSYSTEM"]
["ETRS89-UTM33",null,null,"DHHN2016",null,null,null,null,null,null,null,null,null,null,"amtliche Höhe in [m]",260,null,"Eingabe der mittleren Geländehöhe auf ca. 20m genau"]
[]
["LIEGENSCHAFT/GEBÄUDE-BAUKÖRPER/BAUWERK",null,null,null,null,null,null,null,"OBJEKT-NR",null,null,null,null,null,"Maßstabsfaktor",{"$f":"ROUND(Berechnung!B4,5)","v":0.99994000000000005}]
["Polizeidirektion Zwickau",null,null,null,null,null,null,null,"A0000886"]
["Lessingstraße 17",null,null,null,null,null,null,null,null,null,null,null,null,null,"100 im Plan entsprechen",{"$f":"ROUND(100/Berechnung!B4,3)","v":100.006},"m in der Natur"]
["08058","Zwickau",null,null,null,null,null,null,"LIEGENSCHAFTSNUMMER"]
["GEMARKUNG:","Zwickau",null,null,"FLURSTÜCK:","1095/1",null,null,"L0001639"]
["MASSNAHME",null,null,null,null,null,"Bauabschnitt",null,"MASSNAHMENNR"]
["Polizeidirektion Zwickau",null,null,null,null,null,"BES Bestand"," ","0903806 E 0601"]
["Lessingstr. 17-21 Sanierung + Umbau",null,null,null,null,null,null,null,"KGR/KKE"]
[null,null,null,null,null,null,null,null,"500- Außenanlagen und Freiflächen",null,{"$f":"\"\"","v":""}]
["PLANINHALT",null,null,null,null,null,null,null,"PLANNR",null,"TEIL"]
["Bestandsvermessung",null,null,null,null,null,null,null,"0000",null,"01/01"]
["Koordinierter Leitungsplan",null,null,null,null,null,null,null,"CODIERUNG PLANINHALT"]
[null,null,null,null,null,null,null,null,"BFR Vermessung",null,{"$f":"\"\"","v":""}]
[null,null,null,null,null,null,null,null,"MAßSTAB",null,"FORMAT"]
[null,null,null,null,null,null,null,null,"1:250",null,"A2"]
["PLANSTAND",null,null,null,null,null,null,null,"PLANSTAND",null,"FACHPLANER"]
["Bestandsplan",null,null,null,null,null,null,null,"73 Pläne gemäß BfRVermessung",null,"12 Vermessung / Bauvermessung"," "]
["PLANVERFASSER VERMESSUNG",null,null,null,null,"PLANDATUM","BEARBEITET/GEZEICHNET"]
["Vermessungsbüro Jeschek",null,null,null,null,"2024-02-05","Prill"]
[null,null,null,null,null,"GEZEICHNET"]
[]
["Nach dem Waldhaus 4",null,null,null,null,"DATEINAME",null,null,null,null,"LAYOUT",null,"Freitext","Dateierweiterung"]
["08529","Plauen",null,null,null,{"$f":"Berechnung!D3","v":"A0000886------_73_BES_12_500-_BFR--_0000_00.dwg"},null,null,null,null,"M250_2024",null,null,"dwg"]
["FACHPLANER",null,null,null,null,"PLANDATUM","BEARBEITET/GEZEICHNET"]
[]
[null,null,null,null,null,"GEZEICHNET"]
[]
[null,null,null,null,null,"DATEINAME",null,null,null,null,"LAYOUT"]
[""]
["BAUHERR"]
["Staatsbetrieb Sächsisches"]
["Immobilien- und Baumanagement"]
["Niederlassung","Bautzen"]
["Fabrikstraße 48"]
["02625","Bautzen"]
["03591 582-0",null,null,null,null,"GEZEICHNET","GEZEICHNET",null,null,null,"GEZEICHNET"]
["0351 45109921-00"]

{"sheet":"Berechnung","index":3,"n_rows":17,"n_cols":4,"rows_kept":17,"cut":false,"hidden":true,"merged":[]}
[]
["Em",{"$f":"Formular!P7/1000","v":323},null,{"$f":"CONCATENATE(Plankopf!K6,\"_\",Plankopf!AC2,\"_\",Plankopf!BE2,\"_\",Plankopf!AD2,\"_\",Plankopf!Q3,\"_\",Plankopf!X2,\"--_\",Plankopf!V2,\"_\",Plankopf!BF4)","v":"A0000886------_73_BES_12_500-_BFR--_0000_00"}]
["mittlerer Geländehöhe",{"$f":"Formular!P9/1000","v":0.26},null,{"$f":"IF(Formular!M33=\"\",CONCATENATE(D2,\".\",Formular!N33),CONCATENATE(D2,\"_\",Formular!M33,\".\",Formular!N33))","v":"A0000886------_73_BES_12_500-_BFR--_0000_00.dwg"}]
["Maßstabsfaktor",{"$f":"(1+((B2-500))^2/(2*(6381)^2)+((-1)*B3)/6381)*0.9996","v":0.99994383138411846}]
[]
[]
[]
[]
[]
[]
[]
[]
[]
[]
[]
[]
[null," "]

{"sheet":"Plankopf","index":4,"n_rows":14,"n_cols":73,"rows_kept":14,"cut":false,"hidden":true,"merged":[]}
["HANDLE","BLOCKNAME","KOORDINATENREF","HÖHENSYSTEM","LIEGENSCHAFT","LIEG_STRASSE","LIEG_PLZ","LIEG_ORT","ORT","FL.-ST-NUMMER","OBJEKT-NR","LIEGENSCHAFTSNR","MASSNAHME_1","MASSNAHME_2","MASSNAHME_3","MASSNAHMENR","KGR","PLANART_1","PLANART_2","PLANART_3","EBENE","PLANNR","TEIL","CPA","CPE","MAßSTAB","FORMAT","PLANUNGSSTAND","PLANSTAND","FACHPLANER","AN_NAME_VM_1","AN_NAME_VM_2","AN_NAME_VM_3","AN_STRASSE_VM","AN_PLZ_VM","AN_ORT_VM","PLANDATUM_VM","AN_NAME_VM","DATEINAME_VM","LAYOUTNAME_VM","AN_NAME_FP_1","AN_NAME_FP_2","AN_NAME_FP_3","AN_STRASSE_FP","AN_PLZ_FP","AN_ORT_FP","PLANDATUM_FP","AN_NAME_FP","DATEINAME_FP","LAYOUTNAME_FP","NIEDERLASSUNG","AG_STRASSE","AG_PLZ","AG_ORT","AG_TEL","AG_FAX","Bauabschnitt","Index","INDEX_1","INDEX_2","INDEX_3","AEND/ERGAE_1","AEND/ERGAE_2","AEND/ERGAE_3","DATUM_1","DATUM_2","DATUM_3","NAME_1","NAME_2","NAME_3","VERZERRUNG_1","VERZERRUNG_2"]
["'F34E","Plankopf_",{"$f":"Formular!A9","v":"ETRS89-UTM33"},{"$f":"Formular!D9","v":"DHHN2016"},{"$f":"Formular!A12","v":"Polizeidirektion Zwickau"},{"$f":"F4","v":"Lessingstraße 17"},{"$f":"G4","v":"08058"},{"$f":"Formular!B14","v":"Zwickau"},{"$f":"Formular!B15","v":"Zwickau"},{"$f":"Formular!F15","v":"1095/1"},{"$f":"Formular!I12","v":"A0000886"},{"$f":"Formular!I15","v":"L0001639"},{"$f":"IF(Formular!A17>0,Formular!A17,\"\")","v":"Polizeidirektion Zwickau"},{"$f":"IF(Formular!A18>0,Formular!A18,\"\")","v":"Lessingstr. 17-21 Sanierung + Umbau"},{"$f":"IF(Formular!A19>0,Formular!A19,\"\")","v":""},{"$f":"IF(Formular!I17>0,Formular!I17,\"\")","v":"0903806 E 0601"},{"$f":"TEXT(Q3,\"AAAAA\")","v":"500-"},{"$f":"IF(Formular!A21>0,Formular!A21,\"\")","v":"Bestandsvermessung"},{"$f":"IF(Formular!A22>0,Formular!A22,\"\")","v":"Koordinierter Leitungsplan"},{"$f":"IF(Formular!A23>0,Formular!A23,\"\")","v":""}," ",{"$f":"IF(Formular!I21>0,Formular!I21,\"\")","v":"0000"},{"$f":"IF(Formular!K21>0,Formular!K21,\"\")","v":"01/01"},{"$f":"LEFT(Formular!I23,3)","v":"BFR"}," ",{"$f":"Formular!I25","v":"1:250"},{"$f":"Formular!K25","v":"A2"},{"$f":"IF(Formular!A27>0,Formular!A27,\"\")","v":"Bestandsplan"},{"$f":"LEFT(Formular!I27,2)","v":"73"},{"$f":"LEFT(Formular!K27,2)","v":"12"},{"$f":"IF(Formular!A29>0,Formular!A29,\"\")","v":"Vermessungsbüro Jeschek"},{"$f":"IF(Formular!A30>0,Formular!A30,\"\")","v":""},{"$f":"IF(Formular!A31>0,Formular!A31,\"\")","v":""},{"$f":"IF(Formular!A32>0,Formular!A32,\"\")","v":"Nach dem Waldhaus 4"},{"$f":"IF(Formular!A33>0,Formular!A33,\"\")","v":"08529"},{"$f":"IF(Formular!B33>0,Formular!B33,\"\")","v":"Plauen"},{"$f":"TEXT(AK4,\"TT.MM.JJJJ\")","v":"05.02.2024"},{"$f":"IF(Formular!G29>0,Formular!G29,\"\")","v":"Prill"},{"$f":"IF(Formular!F33>0,Formular!F33,\"\")","v":"A0000886------_73_BES_12_500-_BFR--_0000_00.dwg"},{"$f":"IF(Formular!K33>0,Formular!K33,\"\")","v":"M250_2024"},{"$f":"IF(Formular!A35>0,Formular!F29,\"\")","v":""},{"$f":"IF(Formular!A36>0,Formular!A36,\"\")","v":""},{"$f":"IF(Formular!A37>0,Formular!A37,\"\")","v":""},{"$f":"IF(Formular!A38>0,Formular!A38,\"\")","v":""},{"$f":"IF(Formular!A39>0,Formular!A39,\"\")","v":""},{"$f":"IF(Formular!B39>0,Formular!B39,\"\")","v":""},{"$f":"IF(Formular!F35>0,Formular!F35,\"\")","v":""},{"$f":"IF(Formular!G35>0,Formular!G35,\"\")","v":""},{"$f":"IF(Formular!F39>0,Formular!F39,\"\")","v":""},{"$f":"IF(Formular!K39>0,Formular!K39,\"\")","v":""},{"$f":"Formular!B43","v":"Bautzen"},{"$f":"Formular!A44","v":"Fabrikstraße 48"},{"$f":"Formular!A45","v":"02625"},{"$f":"Formular!B45","v":"Bautzen"},{"$f":"Formular!A46","v":"03591 582-0"},{"$f":"Formular!A47","v":"0351 45109921-00"},{"$f":"LEFT(Formular!G17,3)","v":"BES"},null,{"$f":"IF(Formular!A3>0,Formular!A3,\"\")","v":""},{"$f":"IF(Formular!A2>0,Formular!A2,\"\")","v":""},{"$f":"IF(Formular!A1>0,Formular!A1,\"\")","v":""},{"$f":"IF(Formular!B3>0,Formular!B3,\"\")","v":""},{"$f":"IF(Formular!B2>0,Formular!B2,\"\")","v":""},{"$f":"IF(Formular!B1>0,Formular!B1,\"\")","v":""},{"$f":"TEXT(BM4,\"TT.MM.JJJJ\")","v":""},{"$f":"TEXT(BN4,\"TT.MM.JJJJ\")","v":""},{"$f":"TEXT(BO4,\"TT.MM.JJJJ\")","v":""},{"$f":"IF(Formular!J3>0,Formular!J3,\"\")","v":""},{"$f":"IF(Formular!J2>0,Formular!J2,\"\")","v":""},{"$f":"IF(Formular!J1>0,Formular!J1,\"\")","v":""},{"$f":"IF(Formular!A6>0,Formular!A6,\"\")","v":"Die Daten liegen im Koordinatenreferenzsystem ETRS89-UTM33 vor."},{"$f":"IF(Formular!A7>0,Formular!A7,\"\")","v":"Maßstabsfaktor beträgt am Objekt 0,99994 d.h. 100m im Plan = 100,006m in der Natur."}," "]
[null,null,null,null,null,null,null,null,null,null,null,null,null,null,null,null,{"$f":"LEFT(Formular!I19,4)","v":"500-"}]
[null,null,null,null,null,{"$f":"Formular!A13","v":"Lessingstraße 17"},{"$f":"Formular!A14","v":"08058"},null,null,null,{"$f":"IF(LEN(K2)=8,CONCATENATE(K2,\"---\"),K2)","v":"A0000886---"},null,null,null,null,null,null,null,null,null,null,null,null,null,null,null,null,null,null,null,null,null,null,null,null,null,{"$f":"IF(Formular!F29>0,Formular!F29,\"\")","v":"2024-02-05"},null,null,null,null,null,null,null,null,null,null,null,null,null,null,null,null,null,null,null,null,{"$f":"IF(Formular!A1<>\"\",Formular!A1,BF5)","v":"00"},null,null,null,null,null,null,{"$f":"IF(Formular!G3>0,Formular!G3,\"\")","v":""},{"$f":"IF(Formular!G2>0,Formular!G2,\"\")","v":""},{"$f":"IF(Formular!G1>0,Formular!G1,\"\")","v":""}]
[null,null,null,null,null,null,null,null,null,null,null,null,null,null,null,null,null,null,null,null,null,null,null,null,null,null,null,null,null,null,null,null,null,null,null,null,null,null,null,null,null,null,null,null,null,null,null,null,null,null,null,null,null,null,null,null,null,{"$f":"IF(Formular!A2<>\"\",Formular!A2,BF6)","v":"00"}]
[null,null,null,null,null,null,null,null,null,null,{"$f":"IF(LEN(K4)=11,CONCATENATE(K4,\"---\"),K4)","v":"A0000886------"},null,null,null,null,null,null,null,null,null,null,null,null,null,null,null,null,null,null,null,null,null,null,null,null,null,null,null,null,null,null,null,null,null,null,null,null,null,null,null,null,null,null,null,null,null,null,{"$f":"IF(Formular!A3<>\"\",Formular!A3,\"00\")","v":"00"}]
[]
[]
[]
[]
[]
[]
[]
[null,null,null,null,null,null,null,null,null,null,{"$f":"LEN(K9)","v":0}]

{"sheet":"Wertetabellen","index":5,"n_rows":356,"n_cols":22,"rows_kept":356,"cut":false,"hidden":true,"merged":[]}
["KOORDINATENREF","HÖHENSYSTEM","Niederlassung","AG_STRASSE","AG_PLZ","AG_ORT","AG_TEL","AG_FAX","KGR","CPA","Maßstab","Format","Fachplaner","Planart1","Planart2",null,"Planstand","Fachplaner","Bauabschnitt",null,null,"Dateierweiterung"]
["lokal","lokal","Bautzen","Fabrikstraße 48","02625","Bautzen","03591 582-0","0351 45109921-00","500- Außenanlagen und Freiflächen","ABB Abbruchplan","ohne","A0","00 Gesamtplanung",null," ",null,"10 Wettbewerb","00 Gesamtplanung","B01 1. Bauabschnitt","ANS","00","dxf"]
["RD83-GK4","HN60","Chemnitz","Brückenstraße 12","09111","Chemnitz","0371 457-0","0351 45109931-00","510- Erdbau","ABW Abwicklung","1:25","A1","01 Architekt / Gebäudeplanung","3D/Virtuelles Gebäudemodell/BIM","Ausführungsplan","41, 54, 57, 64, 67","20 Grundlagenermittlung","01 Architekt / Gebäudeplanung","B02 2. Bauabschnitt","GRS","00","dwg"]
["RD83-GK5","HN76","Dresden 1","Königsbrücker Straße 80","01099","Dresden","0351 8093-0","0351 45109941-00","511- Herstellung","ADS Adressierungsplan","1:50","A2","02 Freianlagenplanung","Absteckriss","Bestandsplan","42, 71, 72, 73, 74","31 Nutzungskonzeption","02 Freianlagenplanung","B03 3. Bauabschnitt","LPL","00"]
["ETRS89-UTM33","DHHN92","Dresden 2","Ostra-Allee 23","01067","Dresden","0351 4735-90","0351 45109951-00","512- Umschließung","AFB Aufbauzeichnung","1:100","A3","03 Innenausbau / raumbildende Ausbauten","Bestandsvermessung","Entwurfsplan","31, 41, 52, 53, 57, 62, 67","32 Machbarkeitsstudie","03 Innenausbau / raumbildende Ausbauten","B04 4. Bauabschnitt","MPL","00"]
[null,"DHHN2016","Leipzig 1","Schongauerstraße 7","04328","Leipzig","0341 255-5000","0351 45109961-00","513- Wasserhaltung","ALS Anlagenschema","1:250","841 x 1189","04 Ingenieurbauwerke und Verkehrsanlagen","Digitales Geländemodell","Fortgeschriebener Ausführungsplan","41, 42, 55, 57, 65, 67","33 Zielplanung","04 Ingenieurbauwerke und Verkehrsanlagen","B05 5. Bauabschnitt","SCH","00"]
[null,null,"Leipzig 2","Tieckstraße 2","04275","Leipzig","0341 2175-0","0351 45109971-00","514- Vortrieb","ANS Ansicht","1:500","594 x 841","05 Tragwerksplanung","Freianlagenplan","Konzept","20, 31, 32, 33, 34, 61","34 TVE-Konzept (Technik)","05 Tragwerksplanung","BES Bestand","SIG","00"]
[null,null,"Zwickau","Dr.-Friedrichs-Ring 2a","08056","Zwickau","0375 28369-0","0351 45109991-00","519- Sonstiges zu KG 510","ARS Absteckriss","1:1000","420 x 594","06 TGA / Heizung, Lüftung, Sanitär","Gebäudeaufnahme, Ansicht","Projektunterlage",53.63,"35 Bauaufnahme (Bestandserf./Vermessung vor Planungsbeginn)","06 TGA / Heizung, Lüftung, Sanitär","T01 1. Teilbaumaßnahme","VGM","00"]
[null,null,"Zentrale","Riesaer Str. 7h","01129","Dresden","0351 564-96000","0351 45109911-00","520- Gründung Unterbau","ASF Abstandsflächenplan","1:2000","297 x 420","07 TGA / Starkstromanlagen","Gebäudeaufnahme, Grundriss","Revisionsplan","42, 56, 66","36 Bedarfsanmeldung BedAn","07 TGA / Starkstromanlagen","T02 2. Teilbaumaßnahme","ABB","01"]
[null,null,null,null,null,null,null,null,"521- Baugrundverbesserung","BEF Befundplan","1:2500",null,"08 TGA / Fernmelde- und Informat. Anlagen","Gebäudeaufnahme, Schnitt","Studie","10, 20, 31, 32, 33, 35","41 Planung im BU","08 TGA / Fernmelde- und Informat. Anlagen","T03 3. Teilbaumaßnahme","ABW","01"]
[null,null,null,null,null,null,null,null,"522- Gründung und Bodenplatten","BEP Baustelleneinrichtungsplan","1:5000",null,"09 TGA / Förderanlagen","Gehölzbestandsplan",null,null,"42 umgesetzte Planung im BU","09 TGA / Förderanlagen","T04 4. Teilbaumaßnahme","ANS","01"]
[null,null,null,null,null,null,null,null,"523- Gründungdbeläge","BFR Vermessung","1:10000",null,"10 TGA / Nutzungsspezifische Anlagen","Katasterplan",null,null,"51 Ausgabenanmeldung AABau (KBM)","10 TGA / Nutzungsspezifische Anlagen","T05 5. Teilbaumaßnahme","ASF","01"]
[null,null,null,null,null,null,null,null,"524- Abdichtungen und Bekleidungen","BPL Bewehrungsplan",null,null,"11 TGA / Gebäudeautomation","Koordinierter Leitungsplan",null,null,"52 Bauunterlage BauU (KBM)","11 TGA / Gebäudeautomation",null,"BEP","01"]
[null,null,null,null,null,null,null,null,"525- Dränagen","BRS Brandschutzplan",null,null,"12 Vermessung / Bauvermessung","Lageplan",null,null,"53 Genehmigungsplanung (KBM)","12 Vermessung / Bauvermessung",null,"BRS","01"]
[null,null,null,null,null,null,null,null,"529- Sonstiges zu KG 520","BSP Bodenspiegel",null,null,"13 Herrichten","Pflegeplan",null,null,"54 Ausführungsplanung AFU (KBM)","13 Herrichten",null,"BSP","01"]
[null,null,null,null,null,null,null,null,"530- Oberbau, Deckschichten","BTE Bühnentechnik",null,null,"14 Bauphysik / Sachverständige / SiGeKo","Primärnachweis",null,null,"55 fortgeschriebene AFU (AFUF) (KBM)","14 Bauphysik / Sachverständige / SiGeKo",null,"DAA","01"]
[null,null,null,null,null,null,null,null,"531- Wege","DAA Dachaufsicht",null,null,"15 Facility Management","Übersichtsplan",null,null,"56 Revisionspläne REVI (KBM)","15 Facility Management",null,"DBR","01"]
[null,null,null,null,null,null,null,null,"532- Straßen","DBR Durchbruchplan",null,null,"16 Kunst","Vermessung",null,null,"57 Werkpläne (KBM)","16 Kunst",null,"DES","01"]
[null,null,null,null,null,null,null,null,"533- Plätze, Höfe, Terrassen","DES Deckenspiegel",null,null,"17 Bauüberwachung / ausführende Firmen",null,null,null,"60 Projektunterlage PU (GBM)","17 Bauüberwachung / ausführende Firmen",null,"DET","01"]
[null,null,null,null,null,null,null,null,"534- Stellplätze","DET Detail",null,null,null,null,null,null,"61 Vorplanung (GBM)",null,null,"DGM","01"]
[null,null,null,null,null,null,null,null,"535- Sportplatzflächen","DGM Digitales Geländemodell",null,null,null,null,null,null,"62 Entwurfsunterlage EW-Bau (GBM)",null,null,"FLK","01"]
[null,null,null,null,null,null,null,null,"536- Spielplatzflächen","FAP Freianlagenplan",null,null,null,null,null,null,"63 Genehmigungsplanung (GBM)",null,null,"FPL","01"]
[null,null,null,null,null,null,null,null,"537- Gleisanlagen","FKS Funktionsschema",null,null,null,null,null,null,"64 Ausführungsplanung AFU (GBM)",null,null,"FTP","01"]
[null,null,null,null,null,null,null,null,"538- Flugplatzflächen","FLK Feuerwehrlaufkarten",null,null,null,null,null,null,"65 fortgeschriebene AFU (AFUF)",null,null,"FWP","01"]
[null,null,null,null,null,null,null,null,"539- Sonstiges zu KG 530","FPL Feuerwehrplan",null,null,null,null,null,null,"66 Revisionspläne REVI (GBM)",null,null,"GAA","01"]
[null,null,null,null,null,null,null,null,"540- Baukonstruktionen","FTP Fertigteilplan",null,null,null,null,null,null,"67 Werkpläne (GBM)",null,null,"GAG","01"]
[null,null,null,null,null,null,null,null,"541- Einfriedungen","FWP Flucht- und Rettungswegeplan",null,null,null,null,null,null,"71 RGB-Pläne",null,null,"GAS","01"]
[null,null,null,null,null,null,null,null,"542- Schutzkonstruktionen","GAA Gebäudeaufnahme, Ansicht",null,null,null,null,null,null,"72 CAFM-Pläne/Bestandsdokumentation",null,null,"GRD","01"]
[null,null,null,null,null,null,null,null,"543- Wandkonstruktionen","GAG Gebäudeaufnahme, Grundriss",null,null,null,null,null,null,"73 Pläne gemäß BfRVermessung",null,null,"GRL","01"]
[null,null,null,null,null,null,null,null,"544- Rampen, Treppen, Tribünen","GAS Gebäudeaufnahme, Schnitt",null,null,null,null,null,null,"74 BEST (Bestandsplan nicht nach CAFM)",null,null,"GRS","01"]
[null,null,null,null,null,null,null,null,"545- Überdachungen","GEH Gehölzbestandsplan",null,null,null,null,null,null,null,null,null,"ISO","01"]
[null,null,null,null,null,null,null,null,"546- Stege","GRD Gründung",null,null,null,null,null,null,null,null,null,"KAT","01"]
[null,null,null,null,null,null,null,null,"547- Kanal- und Schachtkonstruktionen","GRL Grundleitung",null,null,null,null,null,null,null,null,null,"LFD","01"]
[null,null,null,null,null,null,null,null,"548- Wasserbecken","GRS Grundriss",null,null,null,null,null,null,null,null,null,"LPL","01"]
[null,null,null,null,null,null,null,null,"549- Sonstiges zu KG 540","INS Installationsplan",null,null,null,null,null,null,null,null,null,"MGK","01"]
[null,null,null,null,null,null,null,null,"550- Technische Anlagen","ISO Isometrie",null,null,null,null,null,null,null,null,null,"MOE","01"]
[null,null,null,null,null,null,null,null,"551- Abwasseranlagen","KAT Katasterplan",null,null,null,null,null,null,null,null,null,"MOP","01"]
[null,null,null,null,null,null,null,null,"552- Wasseranlagen","KLM Klemmenplan",null,null,null,null,null,null,null,null,null,"PER","01"]
[null,null,null,null,null,null,null,null,"553- Anlagen für Gase und Flüssigkeiten","KOO koordinierter Leitungsplan",null,null,null,null,null,null,null,null,null,"SCH","01"]
[null,null,null,null,null,null,null,null,"5531 Ferngas/Stadtgas","KPL Konstruktionsplan",null,null,null,null,null,null,null,null,null,"STA","01"]
[null,null,null,null,null,null,null,null,"5532 Produktenpipeline","LAP Lastenplan",null,null,null,null,null,null,null,null,null,"STP","01"]
[null,null,null,null,null,null,null,null,"554- Wärmenversorgungsanlagen","LFD Denkmalschutz",null,null,null,null,null,null,null,null,null,"UEB","01"]
[null,null,null,null,null,null,null,null,"555- Raumlufttechnische Anlagen","LKA Sicherheitskonzept",null,null,null,null,null,null,null,null,null,"VGM","01"]
[null,null,null,null,null,null,null,null,"556- Elektrische Anlagen","LPL Lageplan",null,null,null,null,null,null,null,null,null,"ABB","02"]
[null,null,null,null,null,null,null,null,"5561 Beleuchtung","LTG Leitungsplan",null,null,null,null,null,null,null,null,null,"ANS","02"]
[null,null,null,null,null,null,null,null,"5562 Elektrizität","MGK Material- und Gestaltungskonzept",null,null,null,null,null,null,null,null,null,"DET","02"]
[null,null,null,null,null,null,null,null,"5563 Erdung","MOE Möblierungsplan",null,null,null,null,null,null,null,null,null,"DGM","02"]
[null,null,null,null,null,null,null,null,"557- Kommunikations-, sicherheits- und informationstechnische Anlagen, Automation","MOP Montageplan",null,null,null,null,null,null,null,null,null,"FAP","02"]
[null,null,null,null,null,null,null,null,"5571 Telekommunikation/Fernmelde ","MPL Masterplan",null,null,null,null,null,null,null,null,null,"GEH","02"]
[null,null,null,null,null,null,null,null,"5572 Steuerleitung","NPL Netzplan",null,null,null,null,null,null,null,null,null,"KOO","02"]
[null,null,null,null,null,null,null,null,"5573 Verkehrsbeeinflussung","OEW Oberflächenentwässerung",null,null,null,null,null,null,null,null,null,"LPL","02"]
[null,null,null,null,null,null,null,null,"558- Nutzungsspezifische Anlagen","PER Perspektive (räuml. Darstellung)",null,null,null,null,null,null,null,null,null,"LTG","02"]
[null,null,null,null,null,null,null,null,"559- Sonstiges zu KG 550","PFL Pflanzplan",null,null,null,null,null,null,null,null,null,"MGK","02"]
[null,null,null,null,null,null,null,null,"5591 Kombinierte Leitungspläne ","PFP Pflegeplan",null,null,null,null,null,null,null,null,null,"OEW","02"]
[null,null,null,null,null,null,null,null,"5592 Kollektoren","POS Positionsplan",null,null,null,null,null,null,null,null,null,"PFL","02"]
[null,null,null,null,null,null,null,null,"5593 Leerrohre","RES Regelschema",null,null,null,null,null,null,null,null,null,"PFP","02"]
[null,null,null,null,null,null,null,null,"560- Einbauten in Außenanlagen und Freiflächen","SAD Schadenskartierung (Denkmal)",null,null,null,null,null,null,null,null,null,"SCH","02"]
[null,null,null,null,null,null,null,null,"561- Allgemeine Einbauten","SCH Schnitte",null,null,null,null,null,null,null,null,null,"UEB","02"]
[null,null,null,null,null,null,null,null,"562- Besondere Einbauten","SIG Sicherheits- und Gesundheitsschutz",null,null,null,null,null,null,null,null,null,"VGM","02"]
[null,null,null,null,null,null,null,null,"563- Orientierungs- und Informationssysteme","SLP Stromlaufplan",null,null,null,null,null,null,null,null,null,"VKA","02"]
[null,null,null,null,null,null,null,null,"569- Sonstiges zu KG 560","SPL Schalplan",null,null,null,null,null,null,null,null,null,"VPL","02"]
[null,null,null,null,null,null,null,null,"570- Vegetationsflächen","SSH Schaltschema",null,null,null,null,null,null,null,null,null,"ABW","03"]
[null,null,null,null,null,null,null,null,"571- Vegetationstechnische Bodenbearbeitung","STA Standortanalyse",null,null,null,null,null,null,null,null,null,"ANS","03"]
[null,null,null,null,null,null,null,null,"572- Sicherungsbauweisen","STP Stellplatznachweis",null,null,null,null,null,null,null,null,null,"BSP","03"]
[null,null,null,null,null,null,null,null,"573- Pflanzflächen","STR Strangschema",null,null,null,null,null,null,null,null,null,"DES","03"]
[null,null,null,null,null,null,null,null,"574- Rasen- und Saatflächen","SUA Schalt- und Anschlussplan",null,null,null,null,null,null,null,null,null,"DET","03"]
[null,null,null,null,null,null,null,null,"579- Sonstiges zu KG 570","SUB Schal-u.Bewehrungspläne",null,null,null,null,null,null,null,null,null,"GRS","03"]
[null,null,null,null,null,null,null,null,"580- Wasserflächen","TRS Trassenplan",null,null,null,null,null,null,null,null,null,"ISO","03"]
[null,null,null,null,null,null,null,null,"581- Befestigungen","TWP Tragwerksplan",null,null,null,null,null,null,null,null,null,"KPL","03"]
[null,null,null,null,null,null,null,null,"582- Abdichtungen","UEB Übersichtsplan",null,null,null,null,null,null,null,null,null,"MOE","03"]
[null,null,null,null,null,null,null,null,"583- Bepflanzungen","USP Übersichtsschaltplan",null,null,null,null,null,null,null,null,null,"PER","03"]
[null,null,null,null,null,null,null,null,"589- Sonstiges zu KG 580","VGM 3D/Virtuelles Gebäudemodell/BIM",null,null,null,null,null,null,null,null,null,"SCH","03"]
[null,null,null,null,null,null,null,null,"590- Sonstige Maßnahmen für Außenanlagen und Freiflächen","VKA Verkehrsanlagen",null,null,null,null,null,null,null,null,null,"UEB","03"]
[null,null,null,null,null,null,null,null,"591- Baustelleneinrichtung","VPL Verlegeplan",null,null,null,null,null,null,null,null,null,"VGM","03"]
[null,null,null,null,null,null,null,null,"592- Gerüste","VTP Verteilerplan",null,null,null,null,null,null,null,null,null,"WPL","03"]
[null,null,null,null,null,null,null,null,"593- Sicherungsmaßnahmen","WAN Wandansicht",null,null,null,null,null,null,null,null,null,"ABB","04"]
[null,null,null,null,null,null,null,null,"594- Abbruchmaßnahmen","WPL Werksplan",null,null,null,null,null,null,null,null,null,"ANS","04"]
[null,null,null,null,null,null,null,null,"595- Instandsetzungen",null,null,null,null,null,null,null,null,null,null,"BFR","04"]
[null,null,null,null,null,null,null,null,"596- Materialentsorgung",null,null,null,null,null,null,null,null,null,null,"DET","04"]
[null,null,null,null,null,null,null,null,"597- Zusätzliche Maßnahmen",null,null,null,null,null,null,null,null,null,null,"GRD","04"]
[null,null,null,null,null,null,null,null,"598- Provisorische Außenanlagen und Freiflächen",null,null,null,null,null,null,null,null,null,null,"GRS","04"]
[null,null,null,null,null,null,null,null,"599- Sonstiges zu KG 590",null,null,null,null,null,null,null,null,null,null,"KOO","04"]
[null,null,null,null,null,null,null,null,null,null,null,null,null,null,null,null,null,null,null,"KPL","04"]
[null,null,null,null,null,null,null,null,null,null,null,null,null,null,null,null,null,null,null,"LPL","04"]
[null,null,null,null,null,null,null,null,null,null,null,null,null,null,null,null,null,null,null,"LTG","04"]
[null,null,null,null,null,null,null,null,null,null,null,null,null,null,null,null,null,null,null,"OEW","04"]
[null,null,null,null,null,null,null,null,null,null,null,null,null,null,null,null,null,null,null,"SCH","04"]
[null,null,null,null,null,null,null,null,null,null,null,null,null,null,null,null,null,null,null,"UEB","04"]
[null,null,null,null,null,null,null,null,null,null,null,null,null,null,null,null,null,null,null,"VGM","04"]
[null,null,null,null,null,null,null,null,null,null,null,null,null,null,null,null,null,null,null,"VKA","04"]
[null,null,null,null,null,null,null,null,null,null,null,null,null,null,null,null,null,null,null,"BPL","05"]
[null,null,null,null,null,null,null,null,null,null,null,null,null,null,null,null,null,null,null,"DBR","05"]
[null,null,null,null,null,null,null,null,null,null,null,null,null,null,null,null,null,null,null,"DET","05"]
[null,null,null,null,null,null,null,null,null,null,null,null,null,null,null,null,null,null,null,"FTP","05"]
[null,null,null,null,null,null,null,null,null,null,null,null,null,null,null,null,null,null,null,"GRD","05"]
[null,null,null,null,null,null,null,null,null,null,null,null,null,null,null,null,null,null,null,"KPL","05"]
[null,null,null,null,null,null,null,null,null,null,null,null,null,null,null,null,null,null,null,"LAP","05"]
[null,null,null,null,null,null,null,null,null,null,null,null,null,null,null,null,null,null,null,"MOP","05"]
[null,null,null,null,null,null,null,null,null,null,null,null,null,null,null,null,null,null,null,"POS","05"]
[null,null,null,null,null,null,null,null,null,null,null,null,null,null,null,null,null,null,null,"SPL","05"]
[null,null,null,null,null,null,null,null,null,null,null,null,null,null,null,null,null,null,null,"SUB","05"]
[null,null,null,null,null,null,null,null,null,null,null,null,null,null,null,null,null,null,null,"TWP","05"]
[null,null,null,null,null,null,null,null,null,null,null,null,null,null,null,null,null,null,null,"UEB","05"]
[null,null,null,null,null,null,null,null,null,null,null,null,null,null,null,null,null,null,null,"VGM","05"]
[null,null,null,null,null,null,null,null,null,null,null,null,null,null,null,null,null,null,null,"VPL","05"]
[null,null,null,null,null,null,null,null,null,null,null,null,null,null,null,null,null,null,null,"WAN","05"]
[null,null,null,null,null,null,null,null,null,null,null,null,null,null,null,null,null,null,null,"ADS","06"]
[null,null,null,null,null,null,null,null,null,null,null,null,null,null,null,null,null,null,null,"AFB","06"]
[null,null,null,null,null,null,null,null,null,null,null,null,null,null,null,null,null,null,null,"ALS","06"]
[null,null,null,null,null,null,null,null,null,null,null,null,null,null,null,null,null,null,null,"BTE","06"]
[null,null,null,null,null,null,null,null,null,null,null,null,null,null,null,null,null,null,null,"DAA","06"]
[null,null,null,null,null,null,null,null,null,null,null,null,null,null,null,null,null,null,null,"DBR","06"]
[null,null,null,null,null,null,null,null,null,null,null,null,null,null,null,null,null,null,null,"DET","06"]
[null,null,null,null,null,null,null,null,null,null,null,null,null,null,null,null,null,null,null,"FKS","06"]
[null,null,null,null,null,null,null,null,null,null,null,null,null,null,null,null,null,null,null,"GRL","06"]
[null,null,null,null,null,null,null,null,null,null,null,null,null,null,null,null,null,null,null,"GRS","06"]
[null,null,null,null,null,null,null,null,null,null,null,null,null,null,null,null,null,null,null,"INS","06"]
[null,null,null,null,null,null,null,null,null,null,null,null,null,null,null,null,null,null,null,"KLM","06"]
[null,null,null,null,null,null,null,null,null,null,null,null,null,null,null,null,null,null,null,"KOO","06"]
[null,null,null,null,null,null,null,null,null,null,null,null,null,null,null,null,null,null,null,"LTG","06"]
[null,null,null,null,null,null,null,null,null,null,null,null,null,null,null,null,null,null,null,"NPL","06"]
[null,null,null,null,null,null,null,null,null,null,null,null,null,null,null,null,null,null,null,"RES","06"]
[null,null,null,null,null,null,null,null,null,null,null,null,null,null,null,null,null,null,null,"SCH","06"]
[null,null,null,null,null,null,null,null,null,null,null,null,null,null,null,null,null,null,null,"SLP","06"]
[null,null,null,null,null,null,null,null,null,null,null,null,null,null,null,null,null,null,null,"SSH","06"]
[null,null,null,null,null,null,null,null,null,null,null,null,null,null,null,null,null,null,null,"STR","06"]
[null,null,null,null,null,null,null,null,null,null,null,null,null,null,null,null,null,null,null,"SUA","06"]
[null,null,null,null,null,null,null,null,null,null,null,null,null,null,null,null,null,null,null,"TRS","06"]
[null,null,null,null,null,null,null,null,null,null,null,null,null,null,null,null,null,null,null,"UEB","06"]
[null,null,null,null,null,null,null,null,null,null,null,null,null,null,null,null,null,null,null,"USP","06"]
[null,null,null,null,null,null,null,null,null,null,null,null,null,null,null,null,null,null,null,"VGM","06"]
[null,null,null,null,null,null,null,null,null,null,null,null,null,null,null,null,null,null,null,"VPL","06"]
[null,null,null,null,null,null,null,null,null,null,null,null,null,null,null,null,null,null,null,"VTP","06"]
[null,null,null,null,null,null,null,null,null,null,null,null,null,null,null,null,null,null,null,"ADS","07"]
[null,null,null,null,null,null,null,null,null,null,null,null,null,null,null,null,null,null,null,"AFB","07"]
[null,null,null,null,null,null,null,null,null,null,null,null,null,null,null,null,null,null,null,"ALS","07"]
[null,null,null,null,null,null,null,null,null,null,null,null,null,null,null,null,null,null,null,"BTE","07"]
[null,null,null,null,null,null,null,null,null,null,null,null,null,null,null,null,null,null,null,"DAA","07"]
[null,null,null,null,null,null,null,null,null,null,null,null,null,null,null,null,null,null,null,"DBR","07"]
[null,null,null,null,null,null,null,null,null,null,null,null,null,null,null,null,null,null,null,"DET","07"]
[null,null,null,null,null,null,null,null,null,null,null,null,null,null,null,null,null,null,null,"FKS","07"]
[null,null,null,null,null,null,null,null,null,null,null,null,null,null,null,null,null,null,null,"GRL","07"]
[null,null,null,null,null,null,null,null,null,null,null,null,null,null,null,null,null,null,null,"GRS","07"]
[null,null,null,null,null,null,null,null,null,null,null,null,null,null,null,null,null,null,null,"INS","07"]
[null,null,null,null,null,null,null,null,null,null,null,null,null,null,null,null,null,null,null,"KLM","07"]
[null,null,null,null,null,null,null,null,null,null,null,null,null,null,null,null,null,null,null,"KOO","07"]
[null,null,null,null,null,null,null,null,null,null,null,null,null,null,null,null,null,null,null,"LTG","07"]
[null,null,null,null,null,null,null,null,null,null,null,null,null,null,null,null,null,null,null,"NPL","07"]
[null,null,null,null,null,null,null,null,null,null,null,null,null,null,null,null,null,null,null,"RES","07"]
[null,null,null,null,null,null,null,null,null,null,null,null,null,null,null,null,null,null,null,"SCH","07"]
[null,null,null,null,null,null,null,null,null,null,null,null,null,null,null,null,null,null,null,"SLP","07"]
[null,null,null,null,null,null,null,null,null,null,null,null,null,null,null,null,null,null,null,"SSH","07"]
[null,null,null,null,null,null,null,null,null,null,null,null,null,null,null,null,null,null,null,"STR","07"]
[null,null,null,null,null,null,null,null,null,null,null,null,null,null,null,null,null,null,null,"SUA","07"]
[null,null,null,null,null,null,null,null,null,null,null,null,null,null,null,null,null,null,null,"TRS","07"]
[null,null,null,null,null,null,null,null,null,null,null,null,null,null,null,null,null,null,null,"UEB","07"]
[null,null,null,null,null,null,null,null,null,null,null,null,null,null,null,null,null,null,null,"USP","07"]
[null,null,null,null,null,null,null,null,null,null,null,null,null,null,null,null,null,null,null,"VGM","07"]
[null,null,null,null,null,null,null,null,null,null,null,null,null,null,null,null,null,null,null,"VPL","07"]
[null,null,null,null,null,null,null,null,null,null,null,null,null,null,null,null,null,null,null,"VTP","07"]
[null,null,null,null,null,null,null,null,null,null,null,null,null,null,null,null,null,null,null,"ADS","08"]
[null,null,null,null,null,null,null,null,null,null,null,null,null,null,null,null,null,null,null,"AFB","08"]
[null,null,null,null,null,null,null,null,null,null,null,null,null,null,null,null,null,null,null,"ALS","08"]
[null,null,null,null,null,null,null,null,null,null,null,null,null,null,null,null,null,null,null,"BTE","08"]
[null,null,null,null,null,null,null,null,null,null,null,null,null,null,null,null,null,null,null,"DAA","08"]
[null,null,null,null,null,null,null,null,null,null,null,null,null,null,null,null,null,null,null,"DBR","08"]
[null,null,null,null,null,null,null,null,null,null,null,null,null,null,null,null,null,null,null,"DET","08"]
[null,null,null,null,null,null,null,null,null,null,null,null,null,null,null,null,null,null,null,"FKS","08"]
[null,null,null,null,null,null,null,null,null,null,null,null,null,null,null,null,null,null,null,"GRL","08"]
[null,null,null,null,null,null,null,null,null,null,null,null,null,null,null,null,null,null,null,"GRS","08"]
[null,null,null,null,null,null,null,null,null,null,null,null,null,null,null,null,null,null,null,"INS","08"]
[null,null,null,null,null,null,null,null,null,null,null,null,null,null,null,null,null,null,null,"KLM","08"]
[null,null,null,null,null,null,null,null,null,null,null,null,null,null,null,null,null,null,null,"KOO","08"]
[null,null,null,null,null,null,null,null,null,null,null,null,null,null,null,null,null,null,null,"LTG","08"]
[null,null,null,null,null,null,null,null,null,null,null,null,null,null,null,null,null,null,null,"NPL","08"]
[null,null,null,null,null,null,null,null,null,null,null,null,null,null,null,null,null,null,null,"RES","08"]
[null,null,null,null,null,null,null,null,null,null,null,null,null,null,null,null,null,null,null,"SCH","08"]
[null,null,null,null,null,null,null,null,null,null,null,null,null,null,null,null,null,null,null,"SLP","08"]
[null,null,null,null,null,null,null,null,null,null,null,null,null,null,null,null,null,null,null,"SSH","08"]
[null,null,null,null,null,null,null,null,null,null,null,null,null,null,null,null,null,null,null,"STR","08"]
[null,null,null,null,null,null,null,null,null,null,null,null,null,null,null,null,null,null,null,"SUA","08"]
[null,null,null,null,null,null,null,null,null,null,null,null,null,null,null,null,null,null,null,"TRS","08"]
[null,null,null,null,null,null,null,null,null,null,null,null,null,null,null,null,null,null,null,"UEB","08"]
[null,null,null,null,null,null,null,null,null,null,null,null,null,null,null,null,null,null,null,"USP","08"]
[null,null,null,null,null,null,null,null,null,null,null,null,null,null,null,null,null,null,null,"VGM","08"]
[null,null,null,null,null,null,null,null,null,null,null,null,null,null,null,null,null,null,null,"VPL","08"]
[null,null,null,null,null,null,null,null,null,null,null,null,null,null,null,null,null,null,null,"VTP","08"]
[null,null,null,null,null,null,null,null,null,null,null,null,null,null,null,null,null,null,null,"ADS","09"]
[null,null,null,null,null,null,null,null,null,null,null,null,null,null,null,null,null,null,null,"AFB","09"]
[null,null,null,null,null,null,null,null,null,null,null,null,null,null,null,null,null,null,null,"ALS","09"]
[null,null,null,null,null,null,null,null,null,null,null,null,null,null,null,null,null,null,null,"BTE","09"]
[null,null,null,null,null,null,null,null,null,null,null,null,null,null,null,null,null,null,null,"DAA","09"]
[null,null,null,null,null,null,null,null,null,null,null,null,null,null,null,null,null,null,null,"DBR","09"]
[null,null,null,null,null,null,null,null,null,null,null,null,null,null,null,null,null,null,null,"DET","09"]
[null,null,null,null,null,null,null,null,null,null,null,null,null,null,null,null,null,null,null,"FKS","09"]
[null,null,null,null,null,null,null,null,null,null,null,null,null,null,null,null,null,null,null,"GRL","09"]
[null,null,null,null,null,null,null,null,null,null,null,null,null,null,null,null,null,null,null,"GRS","09"]
[null,null,null,null,null,null,null,null,null,null,null,null,null,null,null,null,null,null,null,"INS","09"]
[null,null,null,null,null,null,null,null,null,null,null,null,null,null,null,null,null,null,null,"KLM","09"]
[null,null,null,null,null,null,null,null,null,null,null,null,null,null,null,null,null,null,null,"KOO","09"]
[null,null,null,null,null,null,null,null,null,null,null,null,null,null,null,null,null,null,null,"LTG","09"]
[null,null,null,null,null,null,null,null,null,null,null,null,null,null,null,null,null,null,null,"NPL","09"]
[null,null,null,null,null,null,null,null,null,null,null,null,null,null,null,null,null,null,null,"RES","09"]
[null,null,null,null,null,null,null,null,null,null,null,null,null,null,null,null,null,null,null,"SCH","09"]
[null,null,null,null,null,null,null,null,null,null,null,null,null,null,null,null,null,null,null,"SLP","09"]
[null,null,null,null,null,null,null,null,null,null,null,null,null,null,null,null,null,null,null,"SSH","09"]
[null,null,null,null,null,null,null,null,null,null,null,null,null,null,null,null,null,null,null,"STR","09"]
[null,null,null,null,null,null,null,null,null,null,null,null,null,null,null,null,null,null,null,"SUA","09"]
[null,null,null,null,null,null,null,null,null,null,null,null,null,null,null,null,null,null,null,"TRS","09"]
[null,null,null,null,null,null,null,null,null,null,null,null,null,null,null,null,null,null,null,"UEB","09"]
[null,null,null,null,null,null,null,null,null,null,null,null,null,null,null,null,null,null,null,"USP","09"]
[null,null,null,null,null,null,null,null,null,null,null,null,null,null,null,null,null,null,null,"VGM","09"]
[null,null,null,null,null,null,null,null,null,null,null,null,null,null,null,null,null,null,null,"VPL","09"]
[null,null,null,null,null,null,null,null,null,null,null,null,null,null,null,null,null,null,null,"VTP","09"]
[null,null,null,null,null,null,null,null,null,null,null,null,null,null,null,null,null,null,null,"ADS","10"]
[null,null,null,null,null,null,null,null,null,null,null,null,null,null,null,null,null,null,null,"AFB","10"]
[null,null,null,null,null,null,null,null,null,null,null,null,null,null,null,null,null,null,null,"ALS","10"]
[null,null,null,null,null,null,null,null,null,null,null,null,null,null,null,null,null,null,null,"BTE","10"]
[null,null,null,null,null,null,null,null,null,null,null,null,null,null,null,null,null,null,null,"DAA","10"]
[null,null,null,null,null,null,null,null,null,null,null,null,null,null,null,null,null,null,null,"DBR","10"]
[null,null,null,null,null,null,null,null,null,null,null,null,null,null,null,null,null,null,null,"DET","10"]
[null,null,null,null,null,null,null,null,null,null,null,null,null,null,null,null,null,null,null,"FKS","10"]
[null,null,null,null,null,null,null,null,null,null,null,null,null,null,null,null,null,null,null,"GRL","10"]
[null,null,null,null,null,null,null,null,null,null,null,null,null,null,null,null,null,null,null,"GRS","10"]
[null,null,null,null,null,null,null,null,null,null,null,null,null,null,null,null,null,null,null,"INS","10"]
[null,null,null,null,null,null,null,null,null,null,null,null,null,null,null,null,null,null,null,"KLM","10"]
[null,null,null,null,null,null,null,null,null,null,null,null,null,null,null,null,null,null,null,"KOO","10"]
[null,null,null,null,null,null,null,null,null,null,null,null,null,null,null,null,null,null,null,"LTG","10"]
[null,null,null,null,null,null,null,null,null,null,null,null,null,null,null,null,null,null,null,"NPL","10"]
[null,null,null,null,null,null,null,null,null,null,null,null,null,null,null,null,null,null,null,"RES","10"]
[null,null,null,null,null,null,null,null,null,null,null,null,null,null,null,null,null,null,null,"SCH","10"]
[null,null,null,null,null,null,null,null,null,null,null,null,null,null,null,null,null,null,null,"SLP","10"]
[null,null,null,null,null,null,null,null,null,null,null,null,null,null,null,null,null,null,null,"SSH","10"]
[null,null,null,null,null,null,null,null,null,null,null,null,null,null,null,null,null,null,null,"STR","10"]
[null,null,null,null,null,null,null,null,null,null,null,null,null,null,null,null,null,null,null,"SUA","10"]
[null,null,null,null,null,null,null,null,null,null,null,null,null,null,null,null,null,null,null,"TRS","10"]
[null,null,null,null,null,null,null,null,null,null,null,null,null,null,null,null,null,null,null,"UEB","10"]
[null,null,null,null,null,null,null,null,null,null,null,null,null,null,null,null,null,null,null,"USP","10"]
[null,null,null,null,null,null,null,null,null,null,null,null,null,null,null,null,null,null,null,"VGM","10"]
[null,null,null,null,null,null,null,null,null,null,null,null,null,null,null,null,null,null,null,"VPL","10"]
[null,null,null,null,null,null,null,null,null,null,null,null,null,null,null,null,null,null,null,"VTP","10"]
[null,null,null,null,null,null,null,null,null,null,null,null,null,null,null,null,null,null,null,"ADS","11"]
[null,null,null,null,null,null,null,null,null,null,null,null,null,null,null,null,null,null,null,"AFB","11"]
[null,null,null,null,null,null,null,null,null,null,null,null,null,null,null,null,null,null,null,"ALS","11"]
[null,null,null,null,null,null,null,null,null,null,null,null,null,null,null,null,null,null,null,"BTE","11"]
[null,null,null,null,null,null,null,null,null,null,null,null,null,null,null,null,null,null,null,"DAA","11"]
[null,null,null,null,null,null,null,null,null,null,null,null,null,null,null,null,null,null,null,"DBR","11"]
[null,null,null,null,null,null,null,null,null,null,null,null,null,null,null,null,null,null,null,"DET","11"]
[null,null,null,null,null,null,null,null,null,null,null,null,null,null,null,null,null,null,null,"FKS","11"]
[null,null,null,null,null,null,null,null,null,null,null,null,null,null,null,null,null,null,null,"GRL","11"]
[null,null,null,null,null,null,null,null,null,null,null,null,null,null,null,null,null,null,null,"GRS","11"]
[null,null,null,null,null,null,null,null,null,null,null,null,null,null,null,null,null,null,null,"INS","11"]
[null,null,null,null,null,null,null,null,null,null,null,null,null,null,null,null,null,null,null,"KLM","11"]
[null,null,null,null,null,null,null,null,null,null,null,null,null,null,null,null,null,null,null,"KOO","11"]
[null,null,null,null,null,null,null,null,null,null,null,null,null,null,null,null,null,null,null,"LTG","11"]
[null,null,null,null,null,null,null,null,null,null,null,null,null,null,null,null,null,null,null,"NPL","11"]
[null,null,null,null,null,null,null,null,null,null,null,null,null,null,null,null,null,null,null,"RES","11"]
[null,null,null,null,null,null,null,null,null,null,null,null,null,null,null,null,null,null,null,"SCH","11"]
[null,null,null,null,null,null,null,null,null,null,null,null,null,null,null,null,null,null,null,"SLP","11"]
[null,null,null,null,null,null,null,null,null,null,null,null,null,null,null,null,null,null,null,"SSH","11"]
[null,null,null,null,null,null,null,null,null,null,null,null,null,null,null,null,null,null,null,"STR","11"]
[null,null,null,null,null,null,null,null,null,null,null,null,null,null,null,null,null,null,null,"SUA","11"]
[null,null,null,null,null,null,null,null,null,null,null,null,null,null,null,null,null,null,null,"TRS","11"]
[null,null,null,null,null,null,null,null,null,null,null,null,null,null,null,null,null,null,null,"UEB","11"]
[null,null,null,null,null,null,null,null,null,null,null,null,null,null,null,null,null,null,null,"USP","11"]
[null,null,null,null,null,null,null,null,null,null,null,null,null,null,null,null,null,null,null,"VGM","11"]
[null,null,null,null,null,null,null,null,null,null,null,null,null,null,null,null,null,null,null,"VPL","11"]
[null,null,null,null,null,null,null,null,null,null,null,null,null,null,null,null,null,null,null,"VTP","11"]
[null,null,null,null,null,null,null,null,null,null,null,null,null,null,null,null,null,null,null,"ARS","12"]
[null,null,null,null,null,null,null,null,null,null,null,null,null,null,null,null,null,null,null,"BFR","12"]
[null,null,null,null,null,null,null,null,null,null,null,null,null,null,null,null,null,null,null,"DGM","12"]
[null,null,null,null,null,null,null,null,null,null,null,null,null,null,null,null,null,null,null,"FAP","12"]
[null,null,null,null,null,null,null,null,null,null,null,null,null,null,null,null,null,null,null,"GAA","12"]
[null,null,null,null,null,null,null,null,null,null,null,null,null,null,null,null,null,null,null,"GAG","12"]
[null,null,null,null,null,null,null,null,null,null,null,null,null,null,null,null,null,null,null,"GAS","12"]
[null,null,null,null,null,null,null,null,null,null,null,null,null,null,null,null,null,null,null,"GEH","12"]
[null,null,null,null,null,null,null,null,null,null,null,null,null,null,null,null,null,null,null,"KAT","12"]
[null,null,null,null,null,null,null,null,null,null,null,null,null,null,null,null,null,null,null,"KOO","12"]
[null,null,null,null,null,null,null,null,null,null,null,null,null,null,null,null,null,null,null,"LPL","12"]
[null,null,null,null,null,null,null,null,null,null,null,null,null,null,null,null,null,null,null,"PFP","12"]
[null,null,null,null,null,null,null,null,null,null,null,null,null,null,null,null,null,null,null,"UEB","12"]
[null,null,null,null,null,null,null,null,null,null,null,null,null,null,null,null,null,null,null,"VGM","12"]
[null,null,null,null,null,null,null,null,null,null,null,null,null,null,null,null,null,null,null,"ABB","13"]
[null,null,null,null,null,null,null,null,null,null,null,null,null,null,null,null,null,null,null,"ANS","13"]
[null,null,null,null,null,null,null,null,null,null,null,null,null,null,null,null,null,null,null,"BEF","13"]
[null,null,null,null,null,null,null,null,null,null,null,null,null,null,null,null,null,null,null,"BEP","13"]
[null,null,null,null,null,null,null,null,null,null,null,null,null,null,null,null,null,null,null,"GRS","13"]
[null,null,null,null,null,null,null,null,null,null,null,null,null,null,null,null,null,null,null,"LFD","13"]
[null,null,null,null,null,null,null,null,null,null,null,null,null,null,null,null,null,null,null,"LPL","13"]
[null,null,null,null,null,null,null,null,null,null,null,null,null,null,null,null,null,null,null,"SAD","13"]
[null,null,null,null,null,null,null,null,null,null,null,null,null,null,null,null,null,null,null,"SCH","13"]
[null,null,null,null,null,null,null,null,null,null,null,null,null,null,null,null,null,null,null,"STA","13"]
[null,null,null,null,null,null,null,null,null,null,null,null,null,null,null,null,null,null,null,"UEB","13"]
[null,null,null,null,null,null,null,null,null,null,null,null,null,null,null,null,null,null,null,"VGM","13"]
[null,null,null,null,null,null,null,null,null,null,null,null,null,null,null,null,null,null,null,"BEF","14"]
[null,null,null,null,null,null,null,null,null,null,null,null,null,null,null,null,null,null,null,"BRS","14"]
[null,null,null,null,null,null,null,null,null,null,null,null,null,null,null,null,null,null,null,"FLK","14"]
[null,null,null,null,null,null,null,null,null,null,null,null,null,null,null,null,null,null,null,"FPL","14"]
[null,null,null,null,null,null,null,null,null,null,null,null,null,null,null,null,null,null,null,"FWP","14"]
[null,null,null,null,null,null,null,null,null,null,null,null,null,null,null,null,null,null,null,"GRS","14"]
[null,null,null,null,null,null,null,null,null,null,null,null,null,null,null,null,null,null,null,"LFD","14"]
[null,null,null,null,null,null,null,null,null,null,null,null,null,null,null,null,null,null,null,"LKA","14"]
[null,null,null,null,null,null,null,null,null,null,null,null,null,null,null,null,null,null,null,"SAD","14"]
[null,null,null,null,null,null,null,null,null,null,null,null,null,null,null,null,null,null,null,"SIG","14"]
[null,null,null,null,null,null,null,null,null,null,null,null,null,null,null,null,null,null,null,"STA","14"]
[null,null,null,null,null,null,null,null,null,null,null,null,null,null,null,null,null,null,null,"UEB","14"]
[null,null,null,null,null,null,null,null,null,null,null,null,null,null,null,null,null,null,null,"VGM","14"]
[null,null,null,null,null,null,null,null,null,null,null,null,null,null,null,null,null,null,null,"ABW","15"]
[null,null,null,null,null,null,null,null,null,null,null,null,null,null,null,null,null,null,null,"ANS","15"]
[null,null,null,null,null,null,null,null,null,null,null,null,null,null,null,null,null,null,null,"DET","15"]
[null,null,null,null,null,null,null,null,null,null,null,null,null,null,null,null,null,null,null,"GRS","15"]
[null,null,null,null,null,null,null,null,null,null,null,null,null,null,null,null,null,null,null,"MGK","15"]
[null,null,null,null,null,null,null,null,null,null,null,null,null,null,null,null,null,null,null,"PER","15"]
[null,null,null,null,null,null,null,null,null,null,null,null,null,null,null,null,null,null,null,"SCH","15"]
[null,null,null,null,null,null,null,null,null,null,null,null,null,null,null,null,null,null,null,"UEB","15"]
[null,null,null,null,null,null,null,null,null,null,null,null,null,null,null,null,null,null,null,"WPL","15"]
[null,null,null,null,null,null,null,null,null,null,null,null,null,null,null,null,null,null,null,"ABW","16"]
[null,null,null,null,null,null,null,null,null,null,null,null,null,null,null,null,null,null,null,"ANS","16"]
[null,null,null,null,null,null,null,null,null,null,null,null,null,null,null,null,null,null,null,"DET","16"]
[null,null,null,null,null,null,null,null,null,null,null,null,null,null,null,null,null,null,null,"GRS","16"]
[null,null,null,null,null,null,null,null,null,null,null,null,null,null,null,null,null,null,null,"MGK","16"]
[null,null,null,null,null,null,null,null,null,null,null,null,null,null,null,null,null,null,null,"PER","16"]
[null,null,null,null,null,null,null,null,null,null,null,null,null,null,null,null,null,null,null,"SCH","16"]
[null,null,null,null,null,null,null,null,null,null,null,null,null,null,null,null,null,null,null,"UEB","16"]
[null,null,null,null,null,null,null,null,null,null,null,null,null,null,null,null,null,null,null,"WPL","16"]
[null,null,null,null,null,null,null,null,null,null,null,null,null,null,null,null,null,null,null,"ABW","17"]
[null,null,null,null,null,null,null,null,null,null,null,null,null,null,null,null,null,null,null,"ADS","17"]
[null,null,null,null,null,null,null,null,null,null,null,null,null,null,null,null,null,null,null,"AFB","17"]
[null,null,null,null,null,null,null,null,null,null,null,null,null,null,null,null,null,null,null,"ALS","17"]
[null,null,null,null,null,null,null,null,null,null,null,null,null,null,null,null,null,null,null,"ANS","17"]
[null,null,null,null,null,null,null,null,null,null,null,null,null,null,null,null,null,null,null,"BTE","17"]
[null,null,null,null,null,null,null,null,null,null,null,null,null,null,null,null,null,null,null,"DBR","17"]
[null,null,null,null,null,null,null,null,null,null,null,null,null,null,null,null,null,null,null,"DET","17"]
[null,null,null,null,null,null,null,null,null,null,null,null,null,null,null,null,null,null,null,"FKS","17"]
[null,null,null,null,null,null,null,null,null,null,null,null,null,null,null,null,null,null,null,"GRL","17"]
[null,null,null,null,null,null,null,null,null,null,null,null,null,null,null,null,null,null,null,"GRS","17"]
[null,null,null,null,null,null,null,null,null,null,null,null,null,null,null,null,null,null,null,"INS","17"]
[null,null,null,null,null,null,null,null,null,null,null,null,null,null,null,null,null,null,null,"KLM","17"]
[null,null,null,null,null,null,null,null,null,null,null,null,null,null,null,null,null,null,null,"KOO","17"]
[null,null,null,null,null,null,null,null,null,null,null,null,null,null,null,null,null,null,null,"LPL","17"]
[null,null,null,null,null,null,null,null,null,null,null,null,null,null,null,null,null,null,null,"LTG","17"]
[null,null,null,null,null,null,null,null,null,null,null,null,null,null,null,null,null,null,null,"MGK","17"]
[null,null,null,null,null,null,null,null,null,null,null,null,null,null,null,null,null,null,null,"NPL","17"]
[null,null,null,null,null,null,null,null,null,null,null,null,null,null,null,null,null,null,null,"PER","17"]
[null,null,null,null,null,null,null,null,null,null,null,null,null,null,null,null,null,null,null,"RES","17"]
[null,null,null,null,null,null,null,null,null,null,null,null,null,null,null,null,null,null,null,"SCH","17"]
[null,null,null,null,null,null,null,null,null,null,null,null,null,null,null,null,null,null,null,"SLP","17"]
[null,null,null,null,null,null,null,null,null,null,null,null,null,null,null,null,null,null,null,"SSH","17"]
[null,null,null,null,null,null,null,null,null,null,null,null,null,null,null,null,null,null,null,"STR","17"]
[null,null,null,null,null,null,null,null,null,null,null,null,null,null,null,null,null,null,null,"SUA","17"]
[null,null,null,null,null,null,null,null,null,null,null,null,null,null,null,null,null,null,null,"TRS","17"]
[null,null,null,null,null,null,null,null,null,null,null,null,null,null,null,null,null,null,null,"UEB","17"]
[null,null,null,null,null,null,null,null,null,null,null,null,null,null,null,null,null,null,null,"USP","17"]
[null,null,null,null,null,null,null,null,null,null,null,null,null,null,null,null,null,null,null,"VPL","17"]
[null,null,null,null,null,null,null,null,null,null,null,null,null,null,null,null,null,null,null,"VTP","17"]
[null,null,null,null,null,null,null,null,null,null,null,null,null,null,null,null,null,null,null,"WPL","17"]